fUST/lending_fUST_20240818
["ID","MTS","AMOUNT","RATE_DAILY","PERIOD"]
[335225924,1723996241503,-509.76833442,0.00016438,2]
[335225925,1723996241513,-858.68,0.00016438,2]
[335225926,1723996241522,-500.0,0.00016438,2]
[335225927,1723996241531,-500.0,0.00016438,2]
[335225928,1723996241541,-500.0,0.00016438,2]
[335225929,1723996241550,-500.0,0.00016438,2]
[335225930,1723996241559,-500.0,0.00016438,2]
[335225931,1723996241570,-500.0,0.00016438,2]
[335225932,1723996241579,-500.0,0.00016438,2]
[335225933,1723996241588,-500.0,0.00016438,2]
[335225934,1723996241597,-500.0,0.00016438,2]
[335225935,1723996241606,-500.0,0.00016438,2]
[335225936,1723996241615,-598.35,0.00016438,2]
[335225937,1723996241624,-500.0,0.00016438,2]
[335225938,1723996241634,-506.51232328,0.00016438,2]
[335225939,1723996241643,-599.68333757,0.00016438,2]
[335225940,1723996241652,-500.0,0.00016438,2]
[335225941,1723996241661,-500.0,0.00016438,2]
[335225942,1723996241670,-500.0,0.00016438,2]
[335225943,1723996241679,-500.0,0.00016438,2]
[335225944,1723996241689,-500.0,0.00016438,2]
[335225945,1723996241698,-708.08,0.00016438,2]
[335225946,1723996241707,-500.0,0.00016438,2]
[335225947,1723996241715,-500.0,0.00016438,2]
[335225948,1723996241725,-500.0,0.00016438,2]
[335225949,1723996241734,-504.66007728,0.00016438,2]
[335225950,1723996241743,-500.0,0.00016438,2]
[335225951,1723996241752,-507.75576917,0.00016438,2]
[335225952,1723996241761,-690.29,0.00016438,2]
[335225953,1723996241770,-1003.9,0.00016438,2]
[335225954,1723996241779,-500.0,0.00016438,2]
[335225955,1723996241788,-508.68572364,0.00016438,2]
[335225956,1723996241797,-376.41422012,0.00016438,2]
[335225957,1723996241807,-500.0,0.00016438,2]
[335225958,1723996241820,-500.0,0.00016438,2]
[335225959,1723996241829,-500.0,0.00016438,2]
[335225960,1723996241839,-500.0,0.00016438,2]
[335225961,1723996241849,-500.0,0.00016438,2]
[335225962,1723996241859,-539.27040279,0.00016438,2]
[335225963,1723996241867,-500.0,0.00016438,2]
[335225964,1723996241876,-500.0,0.00016438,2]
[335225965,1723996241885,-505.48558456,0.00016438,2]
[335225966,1723996241894,-500.0,0.00016438,2]
[335225967,1723996241905,-514.57750072,0.00016438,2]
[335225968,1723996241915,-500.0,0.00016438,2]
[335225969,1723996241924,-500.0,0.00016438,2]
[335225970,1723996241934,-500.0,0.00016438,2]
[335225971,1723996241944,-379.85518857,0.00016438,2]
[335225972,1723996241955,-526.92,0.00016438,2]
[335225973,1723996241966,-500.0,0.00016438,2]
[335225974,1723996241975,-500.0,0.00016438,2]
[335225975,1723996241986,-655.73,0.00016438,2]
[335225976,1723996241995,-500.0,0.00016438,2]
[335225977,1723996242005,-500.0,0.00016438,2]
[335225978,1723996242014,-500.0,0.00016438,2]
[335225979,1723996242024,-514.8,0.00016438,2]
[335225980,1723996242033,-500.0,0.00016438,2]
[335225981,1723996242043,-151.0,0.00016438,2]
[335225982,1723996242052,-500.0,0.00016438,2]
[335225983,1723996242064,-500.0,0.00016438,2]
[335225984,1723996242074,-500.0,0.00016438,2]
[335225985,1723996242085,-151.0,0.00016438,2]
[335225986,1723996242096,-242.74466697,0.00016438,2]
[335225987,1723996242105,-752.56,0.00016438,2]
[335225988,1723996242114,-512.94873422,0.00016438,2]
[335225989,1723996242125,-500.0,0.00016438,2]
[335225990,1723996242135,-732.89,0.00016438,2]
[335225991,1723996242144,-512.46796529,0.00016438,2]
[335225992,1723996242153,-500.0,0.00016438,2]
[335225993,1723996242165,-500.0,0.00016438,2]
[335225994,1723996242175,-500.0,0.00016438,2]
[335225995,1723996242185,-500.0,0.00016438,2]
[335225996,1723996242195,-500.0,0.00016438,2]
[335225997,1723996242204,-500.0,0.00016438,2]
[335225998,1723996242215,-500.0,0.00016438,2]
[335225999,1723996242225,-500.0,0.00016438,2]
[335226000,1723996242235,-500.0,0.00016438,2]
[335226001,1723996242246,-500.0,0.00016438,2]
[335226002,1723996242257,-500.0,0.00016438,2]
[335226003,1723996242271,-500.0,0.00016438,2]
[335226004,1723996242281,-521.75951476,0.00016438,2]
[335226005,1723996242291,-500.0,0.00016438,2]
[335226006,1723996242303,-379.65994937,0.00016438,2]
[335226007,1723996242315,-500.0,0.00016438,2]
[335226008,1723996242325,-500.0,0.00016438,2]
[335226009,1723996242335,-500.0,0.00016438,2]
[335226010,1723996242346,-500.0,0.00016438,2]
[335226011,1723996242356,-500.0,0.00016438,2]
[335226012,1723996242368,-508.26415308,0.00016438,2]
[335226013,1723996242378,-511.64760546,0.00016438,2]
[335226014,1723996242390,-896.83,0.00016438,2]
[335226015,1723996242401,-794.6,0.00016438,2]
[335226016,1723996242412,-500.0,0.00016438,2]
[335226017,1723996242421,-500.0,0.00016438,2]
[335226018,1723996242431,-500.0,0.00016438,2]
[335226019,1723996242442,-500.0,0.00016438,2]
[335226020,1723996242451,-500.0,0.00016438,2]
[335226021,1723996242461,-500.0,0.00016438,2]
[335226022,1723996242472,-500.0,0.00016438,2]
[335226023,1723996242484,-500.0,0.00016438,2]
[335226024,1723996242619,-500.0,0.00016438,2]
[335226025,1723996242628,-500.0,0.00016438,2]
[335226026,1723996242637,-500.0,0.00016438,2]
[335226028,1723996242648,-500.0,0.00016438,2]
[335226030,1723996242658,-500.0,0.00016438,2]
[335226031,1723996242668,-151.0,0.00016438,2]
[335226032,1723996242679,-500.0,0.00016438,2]
[335226033,1723996242688,-500.0,0.00016438,2]
[335226034,1723996242698,-500.0,0.00016438,2]
[335226035,1723996242708,-500.0,0.00016438,2]
[335226036,1723996242717,-500.0,0.00016438,2]
[335226037,1723996242727,-500.0,0.00016438,2]
[335226038,1723996242737,-500.0,0.00016438,2]
[335226039,1723996242748,-500.0,0.00016438,2]
[335226040,1723996242759,-500.0,0.00016438,2]
[335226041,1723996242768,-500.0,0.00016438,2]
[335226042,1723996242779,-500.0,0.00016438,2]
[335226043,1723996242788,-500.0,0.00016438,2]
[335226045,1723996242798,-500.0,0.00016438,2]
[335226047,1723996242807,-500.0,0.00016438,2]
[335226049,1723996242817,-500.0,0.00016438,2]
[335226051,1723996242826,-500.0,0.00016438,2]
[335226053,1723996242836,-571.99,0.00016438,2]
[335226055,1723996242846,-500.0,0.00016438,2]
[335226058,1723996242855,-500.0,0.00016438,2]
[335226061,1723996242865,-500.0,0.00016438,2]
[335226064,1723996242875,-508.99906591,0.00016438,2]
[335226067,1723996242884,-500.0,0.00016438,2]
[335226068,1723996242895,-520.26,0.00016438,2]
[335226069,1723996242905,-500.0,0.00016438,2]
[335226070,1723996242916,-500.0,0.00016438,2]
[335226071,1723996242927,-502.35481281,0.00016438,2]
[335226072,1723996242938,-500.0,0.00016438,2]
[335226073,1723996242947,-500.0,0.00016438,2]
[335226074,1723996242957,-500.0,0.00016438,2]
[335226076,1723996242968,-500.0,0.00016438,2]
[335226077,1723996242980,-500.0,0.00016438,2]
[335226078,1723996242991,-500.0,0.00016438,2]
[335226079,1723996243002,-500.0,0.00016438,2]
[335226080,1723996243013,-512.39141363,0.00016438,2]
[335226082,1723996243024,-500.0,0.00016438,2]
[335226083,1723996243034,-500.0,0.00016438,2]
[335226084,1723996243045,-500.0,0.00016438,2]
[335226085,1723996243055,-466.80532712,0.00016438,2]
[335226086,1723996243066,-506.59060356,0.00016438,2]
[335226087,1723996243076,-179.59121993,0.00016438,2]
[335226088,1723996243090,-500.0,0.00016438,2]
[335226089,1723996243099,-432.03554059,0.00016438,2]
[335226090,1723996243108,-500.0,0.00016438,2]
[335226091,1723996243118,-607.95,0.00016438,2]
[335226092,1723996243127,-167.27726661,0.00016438,2]
[335226093,1723996243136,-500.0,0.00016438,2]
[335226094,1723996243145,-840.77,0.00016438,2]
[335226095,1723996243155,-500.0,0.00016438,2]
[335226096,1723996243165,-500.0,0.00016438,2]
[335226097,1723996243176,-500.0,0.00016438,2]
[335226098,1723996243186,-500.0,0.00016438,2]
[335226099,1723996243196,-1000.0,0.00016438,2]
[335226100,1723996243208,-500.0,0.00016438,2]
[335226101,1723996243218,-500.0,0.00016438,2]
[335226102,1723996243228,-500.0,0.00016438,2]
[335226103,1723996243239,-503.35131488,0.00016438,2]
[335226104,1723996243248,-500.0,0.00016438,2]
[335226105,1723996243258,-500.0,0.00016438,2]
[335226106,1723996243268,-500.0,0.00016438,2]
[335226107,1723996243277,-500.0,0.00016438,2]
[335226108,1723996243286,-500.0,0.00016438,2]
[335226109,1723996243296,-500.0,0.00016438,2]
[335226110,1723996243305,-500.0,0.00016438,2]
[335226111,1723996243315,-500.0,0.00016438,2]
[335226112,1723996243324,-1123.13,0.00016438,2]
[335226113,1723996243335,-500.0,0.00016438,2]
[335226114,1723996243345,-736.4,0.00016438,2]
[335226115,1723996243354,-502.75146287,0.00016438,2]
[335226116,1723996243364,-500.0,0.00016438,2]
[335226117,1723996243373,-571.39,0.00016438,2]
[335226118,1723996243382,-500.0,0.00016438,2]
[335226119,1723996243391,-500.0,0.00016438,2]
[335226120,1723996243400,-640.56,0.00016438,2]
[335226121,1723996243409,-500.0,0.00016438,2]
[335226122,1723996243418,-500.0,0.00016438,2]
[335226123,1723996243428,-500.0,0.00016438,2]
[335226124,1723996243437,-943.8,0.00016438,2]
[335226125,1723996243446,-500.0,0.00016438,2]
[335226126,1723996243455,-500.0,0.00016438,2]
[335226127,1723996243464,-500.0,0.00016438,2]
[335226128,1723996243474,-500.0,0.00016438,2]
[335226129,1723996243483,-500.0,0.00016438,2]
[335226130,1723996243493,-500.0,0.00016438,2]
[335226131,1723996243501,-500.0,0.00016438,2]
[335226132,1723996243510,-500.0,0.00016438,2]
[335226133,1723996243520,-560.14527885,0.00016438,2]
[335226134,1723996243529,-500.0,0.00016438,2]
[335226135,1723996243539,-505.3599567,0.00016438,2]
[335226136,1723996243548,-507.80802781,0.00016438,2]
[335226137,1723996243558,-504.08150754,0.00016438,2]
[335226138,1723996243567,-503.26337526,0.00016438,2]
[335226139,1723996243577,-500.0,0.00016438,2]
[335226140,1723996243586,-500.0,0.00016438,2]
[335226141,1723996243595,-508.24952635,0.00016438,2]
[335226142,1723996243604,-500.0,0.00016438,2]
[335226143,1723996243613,-500.0,0.00016438,2]
[335226144,1723996243622,-890.54,0.00016438,2]
[335226145,1723996243631,-507.59574381,0.00016438,2]
[335226146,1723996243640,-500.0,0.00016438,2]
[335226147,1723996243649,-500.0,0.00016438,2]
[335226148,1723996243658,-500.0,0.00016438,2]
[335226149,1723996243667,-500.0,0.00016438,2]
[335226150,1723996243676,-500.0,0.00016438,2]
[335226151,1723996243685,-500.0,0.00016438,2]
[335226152,1723996243694,-500.0,0.00016438,2]
[335226153,1723996243703,-500.0,0.00016438,2]
[335226154,1723996243714,-500.0,0.00016438,2]
[335226155,1723996243724,-500.0,0.00016438,2]
[335226156,1723996243733,-501.6854391,0.00016438,2]
[335226157,1723996243743,-500.0,0.00016438,2]
[335226158,1723996243753,-500.0,0.00016438,2]
[335226159,1723996243762,-500.0,0.00016438,2]
[335226160,1723996243770,-612.12252098,0.00016438,2]
[335226161,1723996243780,-500.0,0.00016438,2]
[335226162,1723996243789,-500.0,0.00016438,2]
[335226163,1723996243798,-500.0,0.00016438,2]
[335226164,1723996243807,-150.0,0.00016438,2]
[335226165,1723996243817,-500.0,0.00016438,2]
[335226166,1723996243826,-1344.39,0.00016438,2]
[335226167,1723996243836,-500.0,0.00016438,2]
[335226168,1723996243845,-500.0,0.00016438,2]
[335226169,1723996243854,-309.0108856,0.00016438,2]
[335226170,1723996243863,-500.0,0.00016438,2]
[335226171,1723996243873,-648.34,0.00016438,2]
[335226172,1723996243882,-500.0,0.00016438,2]
[335226173,1723996243891,-500.0,0.00016438,2]
[335226174,1723996243900,-500.0,0.00016438,2]
[335226175,1723996243910,-611.83015375,0.00016438,2]
[335226176,1723996243919,-500.0,0.00016438,2]
[335226177,1723996243928,-635.3239602,0.00016438,2]
[335226178,1723996243937,-500.0,0.00016438,2]
[335226179,1723996243946,-500.0,0.00016438,2]
[335226180,1723996243955,-692.09,0.00016438,2]
[335226181,1723996243965,-500.0,0.00016438,2]
[335226182,1723996243975,-500.0,0.00016438,2]
[335226183,1723996243984,-500.0,0.00016438,2]
[335226184,1723996243993,-500.0,0.00016438,2]
[335226185,1723996244002,-500.0,0.00016438,2]
[335226186,1723996244012,-500.0,0.00016438,2]
[335226187,1723996244021,-500.0,0.00016438,2]
[335226188,1723996244030,-500.0,0.00016438,2]
[335226189,1723996244039,-500.0,0.00016438,2]
[335226190,1723996244049,-417.33335301,0.00016438,2]
[335226191,1723996244058,-1016.59,0.00016438,2]
[335226192,1723996244069,-500.0,0.00016438,2]
[335226193,1723996244079,-500.0,0.00016438,2]
[335226194,1723996244092,-800.02,0.00016438,2]
[335226195,1723996244101,-200.0,0.00016438,2]
[335226196,1723996244110,-500.0,0.00016438,2]
[335226197,1723996244119,-500.0,0.00016438,2]
[335226198,1723996244129,-500.0,0.00016438,2]
[335226199,1723996244138,-500.0,0.00016438,2]
[335226200,1723996244147,-500.0,0.00016438,2]
[335226201,1723996244157,-500.0,0.00016438,2]
[335226202,1723996244168,-1089.38,0.00016438,2]
[335226203,1723996244178,-500.0,0.00016438,2]
[335226204,1723996244188,-500.0,0.00016438,2]
[335226205,1723996244197,-500.0,0.00016438,2]
[335226206,1723996244209,-476.72317009,0.00016438,2]
[335226207,1723996244220,-500.0,0.00016438,2]
[335226208,1723996244230,-1265.42,0.00016438,2]
[335226209,1723996244242,-500.0,0.00016438,2]
[335226210,1723996244252,-500.0,0.00016438,2]
[335226211,1723996244263,-500.0,0.00016438,2]
[335226212,1723996244273,-500.0,0.00016438,2]
[335226213,1723996244284,-649.0,0.00016438,2]
[335226214,1723996244295,-500.0,0.00016438,2]
[335226215,1723996244303,-619.83,0.00016438,2]
[335226216,1723996244313,-500.0,0.00016438,2]
[335226217,1723996244322,-500.0,0.00016438,2]
[335226218,1723996244332,-500.0,0.00016438,2]
[335226219,1723996244341,-506.77248503,0.00016438,2]
[335226220,1723996244351,-500.0,0.00016438,2]
[335226221,1723996244361,-500.0,0.00016438,2]
[335226222,1723996244371,-500.0,0.00016438,2]
[335226223,1723996244381,-500.0,0.00016438,2]
[335226224,1723996244391,-500.0,0.00016438,2]
[335226225,1723996244400,-329.41772764,0.00016438,2]
[335226226,1723996244410,-500.0,0.00016438,2]
[335226227,1723996244420,-500.0,0.00016438,2]
[335226228,1723996244431,-500.0,0.00016438,2]
[335226229,1723996244440,-500.0,0.00016438,2]
[335226230,1723996244450,-500.0,0.00016438,2]
[335226231,1723996244461,-500.0,0.00016438,2]
[335226232,1723996244469,-500.0,0.00016438,2]
[335226233,1723996244478,-500.0,0.00016438,2]
[335226234,1723996244487,-500.0,0.00016438,2]
[335226235,1723996244496,-500.0,0.00016438,2]
[335226236,1723996244505,-500.0,0.00016438,2]
[335226237,1723996244514,-500.0,0.00016438,2]
[335226238,1723996244523,-500.0,0.00016438,2]
[335226239,1723996244532,-1060.13,0.00016438,2]
[335226240,1723996244542,-506.40033661,0.00016438,2]
[335226241,1723996244551,-500.0,0.00016438,2]
[335226242,1723996244562,-500.0,0.00016438,2]
[335226243,1723996244572,-500.0,0.00016438,2]
[335226244,1723996244581,-500.0,0.00016438,2]
[335226245,1723996244593,-502.85908508,0.00016438,2]
[335226246,1723996244602,-500.0,0.00016438,2]
[335226247,1723996244612,-252.00719866,0.00016438,2]
[335226248,1723996244621,-1212.07,0.00016438,2]
[335226249,1723996244631,-500.0,0.00016438,2]
[335226250,1723996244640,-500.0,0.00016438,2]
[335226251,1723996244649,-500.0,0.00016438,2]
[335226252,1723996244658,-272.91192267,0.00016438,2]
[335226253,1723996244667,-500.0,0.00016438,2]
[335226254,1723996244677,-515.17274686,0.00016438,2]
[335226255,1723996244686,-500.0,0.00016438,2]
[335226256,1723996244695,-500.0,0.00016438,2]
[335226257,1723996244706,-500.0,0.00016438,2]
[335226258,1723996244717,-500.0,0.00016438,2]
[335226259,1723996244830,-512.40516125,0.00016438,2]
[335226260,1723996244841,-508.39620964,0.00016438,2]
[335226261,1723996244852,-728.22,0.00016438,2]
[335226262,1723996244863,-500.0,0.00016438,2]
[335226263,1723996244875,-3424.23,0.00016438,2]
[335226264,1723996244885,-500.0,0.00016438,2]
[335226265,1723996244896,-500.0,0.00016438,2]
[335226266,1723996244906,-500.0,0.00016438,2]
[335226267,1723996244917,-500.0,0.00016438,2]
[335226268,1723996244927,-500.0,0.00016438,2]
[335226269,1723996244938,-500.0,0.00016438,2]
[335226270,1723996244950,-682.7,0.00016438,2]
[335226271,1723996244959,-500.0,0.00016438,2]
[335226272,1723996244971,-500.0,0.00016438,2]
[335226273,1723996244982,-535.57,0.00016438,2]
[335226274,1723996244992,-697.63,0.00016438,2]
[335226275,1723996245002,-500.0,0.00016438,2]
[335226276,1723996245012,-500.0,0.00016438,2]
[335226277,1723996245022,-500.0,0.00016438,2]
[335226278,1723996245034,-500.0,0.00016438,2]
[335226279,1723996245043,-1226.06,0.00016438,2]
[335226280,1723996245053,-500.0,0.00016438,2]
[335226281,1723996245063,-519.3786446,0.00016438,2]
[335226282,1723996245080,-1303.51,0.00016438,2]
[335226283,1723996245094,-507.65850958,0.00016438,2]
[335226284,1723996245103,-687.93,0.00016438,2]
[335226285,1723996245113,-500.0,0.00016438,2]
[335226286,1723996245123,-500.0,0.00016438,2]
[335226287,1723996245134,-500.0,0.00016438,2]
[335226288,1723996245144,-500.0,0.00016438,2]
[335226289,1723996245155,-500.0,0.00016438,2]
[335226290,1723996245167,-646.62,0.00016438,2]
[335226291,1723996245178,-1047.1,0.00016438,2]
[335226292,1723996245188,-391.39034035,0.00016438,2]
[335226293,1723996245199,-462.35558173,0.00016438,2]
[335226314,1723996246098,-37.64441827,0.00016438,2]
[335226315,1723996246107,-584.26,0.00016438,2]
[335226316,1723996246118,-501.12137864,0.00016438,2]
[335226317,1723996246128,-500.0,0.00016438,2]
[335226318,1723996246140,-500.0,0.00016438,2]
[335226319,1723996246152,-500.0,0.00016438,2]
[335226320,1723996246163,-500.0,0.00016438,2]
[335226321,1723996246175,-454.33912668,0.00016438,2]
[335226322,1723996246185,-500.0,0.00016438,2]
[335226323,1723996246196,-503.76485255,0.00016438,2]
[335226324,1723996246206,-418.11879524,0.00016438,2]
[335226325,1723996246215,-500.0,0.00016438,2]
[335226326,1723996246225,-500.0,0.00016438,2]
[335226327,1723996246236,-2801.24,0.00016438,2]
[335226328,1723996246245,-500.0,0.00016438,2]
[335226329,1723996246255,-500.0,0.00016438,2]
[335226330,1723996246265,-500.0,0.00016438,2]
[335226331,1723996246275,-1847.89,0.00016438,2]
[335226332,1723996246285,-500.0,0.00016438,2]
[335226333,1723996246295,-500.0,0.00016438,2]
[335226334,1723996246305,-500.0,0.00016438,2]
[335226335,1723996246314,-565.81,0.00016438,2]
[335226336,1723996246326,-1099.61,0.00016438,2]
[335226337,1723996246335,-510.97364611,0.00016438,2]
[335226338,1723996246344,-500.0,0.00016438,2]
[335226339,1723996246354,-500.0,0.00016438,2]
[335226340,1723996246363,-500.0,0.00016438,2]
[335226341,1723996246372,-500.0,0.00016438,2]
[335226342,1723996246381,-825.99,0.00016438,2]
[335226343,1723996246391,-826.89,0.00016438,2]
[335226344,1723996246401,-500.0,0.00016438,2]
[335226345,1723996246411,-500.0,0.00016438,2]
[335226346,1723996246421,-500.0,0.00016438,2]
[335226347,1723996246431,-1100.84,0.00016438,2]
[335226348,1723996246442,-500.0,0.00016438,2]
[335226349,1723996246452,-500.0,0.00016438,2]
[335226350,1723996246462,-533.31,0.00016438,2]
[335226351,1723996246473,-500.0,0.00016438,2]
[335226352,1723996246484,-500.0,0.00016438,2]
[335226353,1723996246496,-500.0,0.00016438,2]
[335226354,1723996246506,-500.0,0.00016438,2]
[335226355,1723996246515,-500.0,0.00016438,2]
[335226356,1723996246524,-1771.2,0.00016438,2]
[335226358,1723996246644,-500.0,0.00016438,2]
[335226359,1723996246655,-500.0,0.00016438,2]
[335226360,1723996246665,-500.0,0.00016438,2]
[335226361,1723996246675,-624.13,0.00016438,2]
[335226362,1723996246685,-593.34,0.00016438,2]
[335226363,1723996246695,-500.0,0.00016438,2]
[335226364,1723996246705,-500.0,0.00016438,2]
[335226365,1723996246715,-500.0,0.00016438,2]
[335226366,1723996246727,-500.0,0.00016438,2]
[335226367,1723996246736,-500.0,0.00016438,2]
[335226368,1723996246747,-7348.92,0.00016438,2]
[335226369,1723996246757,-1135.71,0.00016438,2]
[335226370,1723996246768,-500.0,0.00016438,2]
[335226371,1723996246777,-846.72,0.00016438,2]
[335226372,1723996246786,-500.0,0.00016438,2]
[335226373,1723996246796,-500.0,0.00016438,2]
[335226374,1723996246807,-500.0,0.00016438,2]
[335226375,1723996246818,-500.0,0.00016438,2]
[335226376,1723996246827,-500.0,0.00016438,2]
[335226377,1723996246837,-503.19594722,0.00016438,2]
[335226378,1723996246846,-500.0,0.00016438,2]
[335226379,1723996246855,-500.0,0.00016438,2]
[335226380,1723996246864,-500.0,0.00016438,2]
[335226381,1723996246873,-501.7969771,0.00016438,2]
[335226382,1723996246883,-500.0,0.00016438,2]
[335226383,1723996246892,-803.67,0.00016438,2]
[335226384,1723996246902,-626.48,0.00016438,2]
[335226385,1723996246911,-500.0,0.00016438,2]
[335226386,1723996246923,-500.0,0.00016438,2]
[335226387,1723996246935,-581.47,0.00016438,2]
[335226388,1723996246946,-166.30995301,0.00016438,2]
[335226389,1723996246955,-651.65,0.00016438,2]
[335226390,1723996246967,-500.0,0.00016438,2]
[335226391,1723996246978,-379.23394776,0.00016438,2]
[335226392,1723996246988,-988.99,0.00016438,2]
[335226393,1723996247000,-500.0,0.00016438,2]
[335226394,1723996247010,-500.0,0.00016438,2]
[335226395,1723996247021,-511.45949116,0.00016438,2]
[335226396,1723996247033,-580.3,0.00016438,2]
[335226397,1723996247043,-500.0,0.00016438,2]
[335226398,1723996247053,-500.0,0.00016438,2]
[335226399,1723996247063,-500.0,0.00016438,2]
[335226400,1723996247072,-500.0,0.00016438,2]
[335226401,1723996247082,-500.0,0.00016438,2]
[335226402,1723996247095,-500.0,0.00016438,2]
[335226403,1723996247104,-1180.26,0.00016438,2]
[335226404,1723996247113,-557.75,0.00016438,2]
[335226405,1723996247122,-594.42,0.00016438,2]
[335226406,1723996247132,-500.0,0.00016438,2]
[335226407,1723996247141,-500.0,0.00016438,2]
[335226408,1723996247150,-500.0,0.00016438,2]
[335226409,1723996247160,-500.0,0.00016438,2]
[335226410,1723996247170,-500.0,0.00016438,2]
[335226411,1723996247179,-363.00851937,0.00016438,2]
[335226412,1723996247188,-500.0,0.00016438,2]
[335226413,1723996247198,-500.0,0.00016438,2]
[335226414,1723996247206,-500.0,0.00016438,2]
[335226415,1723996247216,-2766.47,0.00016438,2]
[335226416,1723996247225,-500.0,0.00016438,2]
[335226417,1723996247234,-500.0,0.00016438,2]
[335226418,1723996247243,-500.0,0.00016438,2]
[335226419,1723996247252,-500.0,0.00016438,2]
[335226420,1723996247261,-500.0,0.00016438,2]
[335226421,1723996247270,-500.0,0.00016438,2]
[335226422,1723996247279,-500.0,0.00016438,2]
[335226423,1723996247288,-500.0,0.00016438,2]
[335226424,1723996247298,-500.0,0.00016438,2]
[335226425,1723996247307,-919.11,0.00016438,2]
[335226426,1723996247316,-505.04959204,0.00016438,2]
[335226427,1723996247325,-515.79324204,0.00016438,2]
[335226428,1723996247334,-500.0,0.00016438,2]
[335226429,1723996247343,-500.0,0.00016438,2]
[335226430,1723996247352,-500.0,0.00016438,2]
[335226431,1723996247361,-500.0,0.00016438,2]
[335226432,1723996247371,-500.0,0.00016438,2]
[335226433,1723996247380,-642.76,0.00016438,2]
[335226434,1723996247389,-837.87,0.00016438,2]
[335226435,1723996247398,-176.54166982,0.00016438,2]
[335226436,1723996247406,-500.0,0.00016438,2]
[335226437,1723996247415,-500.0,0.00016438,2]
[335226438,1723996247424,-500.0,0.00016438,2]
[335226439,1723996247434,-798.58,0.00016438,2]
[335226440,1723996247444,-1021.12,0.00016438,2]
[335226441,1723996247453,-500.0,0.00016438,2]
[335226442,1723996247462,-500.0,0.00016438,2]
[335226443,1723996247472,-500.0,0.00016438,2]
[335226444,1723996247482,-677.44,0.00016438,2]
[335226445,1723996247491,-699.72,0.00016438,2]
[335226446,1723996247500,-500.0,0.00016438,2]
[335226447,1723996247509,-500.0,0.00016438,2]
[335226448,1723996247518,-500.0,0.00016438,2]
[335226449,1723996247527,-500.0,0.00016438,2]
[335226450,1723996247536,-2133.23,0.00016438,2]
[335226451,1723996247545,-495.78922425,0.00016438,2]
[335226452,1723996247554,-500.0,0.00016438,2]
[335226453,1723996247563,-513.78946018,0.00016438,2]
[335226454,1723996247573,-954.92,0.00016438,2]
[335226455,1723996247583,-500.0,0.00016438,2]
[335226456,1723996247592,-500.0,0.00016438,2]
[335226457,1723996247601,-500.0,0.00016438,2]
[335226458,1723996247610,-500.0,0.00016438,2]
[335226459,1723996247619,-854.52,0.00016438,2]
[335226460,1723996247628,-880.39,0.00016438,2]
[335226461,1723996247637,-482.46625134,0.00016438,2]
[335226462,1723996247647,-750.43,0.00016438,2]